bitfinex/quotes_SOLUSD_20220227
["timestamp","ask_amount","ask_price","bid_price","bid_amount"]
[1645984669057,113.3,88.629,88.54,23.56587444]
[1645984669258,113.3,88.627,88.54,23.56587444]
[1645984669557,1.73204427,88.624,88.54,23.56587444]
[1645984669760,1.48866295,88.621,88.53,16.9432]
[1645984669960,4.515,88.62,88.53,16.9432]
[1645984670259,113.3,88.619,88.53,16.9432]
[1645984670458,113.3,88.617,88.53,16.9432]
[1645984670658,113.3,88.615,88.53,16.9432]
[1645984670859,113.3,88.613,88.53,16.9432]
[1645984671056,12.22068559,88.614,88.53,16.9432]
[1645984671057,113.3,88.611,88.53,16.9432]
[1645984671258,113.3,88.609,88.53,16.9432]
[1645984671462,113.3,88.607,88.53,16.9432]
[1645984671661,113.3,88.605,88.53,16.9432]
[1645984672058,4.516,88.604,88.53,16.9432]
[1645984672859,4.516,88.604,88.53,40.50907444]
[1645984673460,113.3,88.605,88.53,40.50907444]
[1645984674866,113.3,88.603,88.53,40.50907444]
[1645984675665,4.516,88.602,88.53,40.50907444]
[1645984676667,6.0,88.604,88.531,3.07458546]
[1645984676966,6.0,88.604,88.54,16.9425]
[1645984677167,24.8473,88.606,88.54,19.76488402]
[1645984677371,6.0,88.605,88.54,19.26931036]
[1645984677566,24.8473,88.606,88.54,19.83359666]
[1645984677767,113.3,88.605,88.54,19.83359666]
[1645984677966,117.816,88.605,88.54,19.83359666]
[1645984678167,113.3,88.605,88.54,19.83359666]
[1645984678968,113.3,88.603,88.54,19.83359666]
[1645984681372,4.516,88.602,88.54,2.89109666]
[1645984681573,4.516,88.602,88.533,2.66745269]
[1645984681774,113.3,88.603,88.533,2.66745269]
[1645984682374,113.3,88.605,88.533,2.66745269]
[1645984683777,117.816,88.605,88.533,2.66745269]
[1645984684678,1.39453976,88.604,88.532,24.6719]
[1645984684877,4.516,88.603,88.53,16.9445]
[1645984686179,113.3,88.601,88.53,16.9445]
[1645984686381,113.3,88.599,88.521,22.5852]
[1645984686580,113.3,88.597,88.521,22.5852]
[1645984686780,1.67477258,88.596,88.521,22.5852]
[1645984687283,136.9734,88.595,88.521,22.5852]
[1645984687684,23.6734,88.595,88.521,46.15107444]
[1645984687883,23.6734,88.595,88.53,16.9442]
[1645984688082,23.6734,88.595,88.532,3.0314926]
[1645984689984,6.0,88.594,88.54,16.9422]
[1645984690185,6.0,88.594,88.541,3.02681949]
[1645984706521,6.0,88.594,88.55,16.9406]
[1645984706820,23.6734,88.595,88.551,2.32262881]
[1645984709725,23.6734,88.595,88.56,16.9386]
[1645984717158,23.6734,88.595,88.543,4.515]
[1645984717159,6.0,88.594,88.543,4.515]
[1645984717560,6.0,88.594,88.54,17.0259]
[1645984718362,113.3,88.593,88.54,17.0259]
[1645984718560,113.3,88.593,88.531,24.2251]
[1645984718761,1.76819284,88.592,88.521,23.60832592]
[1645984719059,1.76819284,88.592,88.502,25.74427829]
[1645984719060,4.516,88.591,88.513,23.85181378]
[1645984719264,113.3,88.59,88.5,16.34]
[1645984719463,113.3,88.588,88.5,16.34]
[1645984719663,5.9973882,88.589,88.5,40.19181378]
[1645984719664,113.3,88.586,88.5,40.19181378]
[1645984719863,113.3,88.584,88.5,40.19181378]
[1645984720062,113.3,88.582,88.5,40.19181378]
[1645984720263,1.63273602,88.581,88.5,40.19181378]
[1645984720564,4.517,88.58,88.5,57.14101378]
[1645984720763,113.3,88.578,88.5,57.14101378]
[1645984720966,113.3,88.576,88.5,57.14101378]
[1645984721164,113.3,88.574,88.5,57.14101378]
[1645984721364,113.3,88.572,88.5,57.14101378]
[1645984721563,113.3,88.57,88.5,57.14101378]
[1645984721765,113.3,88.568,88.5,57.14101378]
[1645984721963,1.61777216,88.567,88.5,57.14101378]
[1645984722365,1.8485622,88.565,88.5,57.14101378]
[1645984723769,1.8485622,88.565,88.5,23.85181378]
[1645984723969,1.8485622,88.565,88.477,3.08987442]
[1645984723970,7.26478921,88.564,88.486,23.85181378]
[1645984724168,7.26478921,88.564,88.477,4.518]
[1645984724169,113.3,88.563,88.477,4.518]
[1645984724370,113.3,88.563,88.443,26.85748462]
[1645984724371,113.3,88.561,88.444,4.518]
[1645984724569,1.5776324,88.56,88.449,23.85181378]
[1645984724771,117.819,88.559,88.45,4.519]
[1645984724970,113.3,88.557,88.45,4.519]
[1645984725168,6.2248166,88.556,88.451,23.85181378]
[1645984725368,1.57967566,88.554,88.452,4.519]
[1645984725570,4.519,88.553,88.452,4.519]
[1645984725769,1.57099305,88.55,88.451,23.85181378]
[1645984725970,4.519,88.549,88.451,23.85181378]
[1645984726174,4.519,88.549,88.45,16.9599]
[1645984726175,113.3,88.548,88.453,23.85181378]
[1645984726372,113.3,88.546,88.453,23.85181378]
[1645984726573,113.3,88.544,88.454,2.83670254]
[1645984726773,1.59573058,88.543,88.454,2.83670254]
[1645984726973,1.36719658,88.54,88.456,2.34587348]
[1645984727374,1.36719658,88.54,88.457,23.85181378]
[1645984727573,1.36719658,88.54,88.46,16.9581]
[1645984727975,4.519,88.539,88.46,16.9581]
[1645984728878,4.519,88.539,88.461,24.3258]
[1645984729075,4.519,88.539,88.46,16.9581]
[1645984731880,113.3,88.537,88.46,16.9581]
[1645984732081,113.3,88.535,88.444,23.85181378]
[1645984732280,113.3,88.533,88.444,23.85181378]
[1645984732480,1.36840764,88.532,88.444,23.85181378]
[1645984732679,113.3,88.53,88.444,23.85181378]
[1645984732881,113.3,88.528,88.444,23.85181378]
[1645984733079,1.84985234,88.527,88.444,23.85181378]
[1645984733281,113.3,88.526,88.444,23.85181378]
[1645984733482,113.3,88.524,88.444,23.85181378]
[1645984733683,113.3,88.522,88.444,23.85181378]
[1645984733882,113.3,88.52,88.45,16.9603]
[1645984734180,136.3027,88.525,88.45,16.9603]
[1645984734381,136.3027,88.525,88.452,2.31126568]
[1645984734582,136.3027,88.525,88.453,22.7181]
[1645984734779,136.3027,88.525,88.453,46.56991378]
[1645984734980,136.3027,88.525,88.454,2.29385116]
[1645984735183,136.3027,88.525,88.455,2.58640894]
[1645984735381,136.3027,88.525,88.455,26.43822272]
[1645984735581,113.3,88.523,88.456,26.5628489]
[1645984735782,113.3,88.523,88.457,2.51223735]
[1645984735983,113.3,88.523,88.457,26.36405113]
[1645984736182,4.519,88.522,88.458,2.46803819]
[1645984737084,113.3,88.523,88.458,26.31985197]
[1645984737284,113.3,88.523,88.459,3.02909912]
[1645984737684,113.3,88.523,88.46,23.85181378]
[1645984737885,113.3,88.523,88.46,40.81011378]
[1645984739388,113.3,88.524,88.46,40.81011378]
[1645984739885,113.3,88.524,88.461,23.85181378]
[1645984741186,113.3,88.524,88.46,16.9583]
[1645984741385,4.519,88.523,88.453,22.7181]
[1645984742889,113.3,88.521,88.453,22.7181]
[1645984743089,117.819,88.521,88.453,22.7181]
[1645984744189,113.3,88.521,88.453,22.7181]
[1645984745993,23.0027,88.525,88.453,22.7181]
[1645984745994,23.0027,88.525,88.46,16.9583]
[1645984746192,6.0,88.524,88.461,2.30841915]
[1645984746392,6.0,88.524,88.462,6.0]
[1645984746591,23.0027,88.525,88.462,9.07252995]
[1645984746791,23.0027,88.525,88.463,46.96401378]
[1645984746996,23.0027,88.525,88.464,8.91972959]
[1645984747193,23.0027,88.525,88.464,56.62678263]
[1645984747392,23.0027,88.525,88.465,2.50786395]
[1645984747593,23.0027,88.525,88.48,16.953]
[1645984747792,23.0027,88.525,88.481,2.84216846]
[1645984747992,23.0027,88.525,88.481,26.69398224]
[1645984748193,23.0027,88.525,88.482,2.40794612]
[1645984749101,23.0027,88.525,88.483,23.85523926]
[1645984749296,23.0027,88.525,88.484,2.62318899]
[1645984749497,23.0027,88.525,88.49,16.9526]
[1645984753613,136.3027,88.525,88.49,16.9526]
[1645984753814,6.0,88.524,88.47,16.9556]
[1645984754215,113.3,88.523,88.47,16.9556]
[1645984756221,113.3,88.523,88.45,16.9603]
[1645984756222,1.42051991,88.522,88.45,16.9603]
[1645984756420,4.519,88.521,88.45,16.9603]
[1645984756821,113.3,88.521,88.45,16.9603]
[1645984757021,4.519,88.52,88.45,16.9603]
[1645984758122,117.819,88.52,88.45,16.9603]
[1645984758924,113.3,88.518,88.45,16.9603]
[1645984761626,113.3,88.517,88.45,16.9603]
[1645984762630,4.519,88.521,88.45,16.9603]
[1645984764729,1.42051991,88.522,88.45,16.9603]
[1645984764929,1.42051991,88.522,88.45,40.81211378]
[1645984765132,113.3,88.52,88.45,40.81211378]
[1645984765531,113.3,88.518,88.45,40.81211378]
[1645984765734,113.3,88.516,88.43,16.964]
[1645984765932,113.3,88.514,88.43,16.9278707]
[1645984766131,113.3,88.512,88.431,3.0578283]
[1645984766331,4.521,88.511,88.431,3.0578283]
[1645984766532,113.3,88.51,88.431,3.0578283]
[1645984766831,4.521,88.509,88.431,3.0578283]
[1645984767530,1.80312065,88.507,88.431,3.0578283]
[1645984767733,4.521,88.506,88.431,3.0578283]
[1645984767934,4.521,88.506,88.422,4.521]
[1645984768534,113.3,88.503,88.422,4.521]
[1645984768732,113.3,88.503,88.389,2.27528809]
[1645984768733,113.3,88.499,88.389,23.4567]
[1645984768934,5.96667722,88.498,88.39,2.34610939]
[1645984769133,1.86694635,88.496,88.39,2.34610939]
[1645984769342,4.522,88.495,88.39,2.34610939]
[1645984769535,1.65716835,88.492,88.392,2.86090052]
[1645984769734,4.522,88.491,88.392,2.86090052]
[1645984769934,4.522,88.491,88.394,3.09089759]
[1645984770338,4.522,88.491,88.395,21.63314711]
[1645984770534,4.522,88.491,88.4,16.9704]
[1645984770735,1.65716835,88.492,88.401,2.57824606]
[1645984770934,4.522,88.491,88.401,48.06663243]
[1645984771134,4.522,88.492,88.402,24.37319395]
[1645984771335,4.522,88.492,88.403,25.18015018]
[1645984771537,4.522,88.492,88.404,2.96671446]
[1645984772337,4.522,88.492,88.41,16.9678]
[1645984772538,116.04678921,88.491,88.403,22.7662]
[1645984772736,1.49407764,88.488,88.391,2.56137858]
[1645984772939,4.522,88.487,88.391,2.56137858]
[1645984773336,1.49310909,88.485,88.391,2.56137858]
[1645984773738,4.522,88.484,88.391,2.56137858]
[1645984774237,1.52802723,88.482,88.393,3.07570729]
[1645984774438,1.36934831,88.48,88.393,3.07570729]
[1645984774937,113.3,88.476,88.393,3.07570729]
[1645984775138,1.66349573,88.475,88.393,3.07570729]
[1645984775541,1.66349573,88.475,88.4,16.9706]
[1645984779351,6.0,88.474,88.4,16.9706]
[1645984779552,113.3,88.473,88.4,16.9706]
[1645984779952,113.3,88.471,88.4,16.9706]
[1645984783058,113.3,88.469,88.401,2.95027606]
[1645984783658,117.823,88.469,88.401,2.95027606]
[1645984784373,117.823,88.469,88.402,23.1578]
[1645984785473,4.523,88.468,88.402,23.1578]
[1645984786576,4.523,88.469,88.402,23.1578]
[1645984786778,4.523,88.47,88.402,23.1578]
[1645984786977,4.49704716,88.47,88.402,23.1578]
[1645984790384,113.3,88.468,88.402,23.1578]
[1645984791483,113.3,88.467,88.402,23.1578]
[1645984791684,4.523,88.471,88.41,16.969]
[1645984791885,24.3655,88.472,88.411,2.26230799]
[1645984792284,24.3655,88.472,88.41,12.86336308]
[1645984792483,24.3655,88.472,88.411,12.86336308]
[1645984793484,24.3655,88.472,88.42,16.9664]
[1645984793686,24.3655,88.472,88.421,2.48354202]
[1645984794087,6.0,88.471,88.421,2.48354202]
[1645984800892,113.3,88.47,88.421,2.48354202]
[1645984801293,113.3,88.47,88.413,23.0984]
[1645984801591,113.3,88.47,88.397,12.86336308]
[1645984801996,117.823,88.469,88.382,12.86336308]
[1645984802295,122.01914743,88.469,88.382,12.86336308]
[1645984802491,2.74678921,88.468,88.368,12.86336308]
[1645984802693,4.523,88.467,88.368,12.86336308]
[1645984802893,113.3,88.465,88.364,2.27991208]
[1645984803092,4.524,88.464,88.352,35.15860234]
[1645984803294,113.3,88.449,88.353,2.26135856]
[1645984803493,16.34,88.45,88.36,16.9783]
[1645984803494,113.3,88.447,88.36,16.9783]
[1645984803695,113.3,88.445,88.36,16.9783]
[1645984803892,113.3,88.443,88.36,16.9783]
[1645984804092,1.62030304,88.442,88.36,16.9783]
[1645984804493,16.34,88.44,88.352,12.86336308]
[1645984804694,119.66541613,88.439,88.348,112.6]
[1645984804895,1.5900904,88.438,88.348,112.6]
[1645984805095,4.525,88.437,88.348,112.6]
[1645984805294,4.525,88.437,88.276,22.6654]
[1645984805295,113.3,88.435,88.318,12.86336308]
[1645984805494,113.3,88.433,88.318,12.86336308]
[1645984805698,16.34,88.42,88.318,12.86336308]
[1645984805995,1.36345214,88.408,88.318,12.86336308]
[1645984806199,115.00541924,88.406,88.318,12.86336308]
[1645984806410,1.74698831,88.405,88.308,112.6]
[1645984806597,4.527,88.404,88.308,112.6]
[1645984806798,113.3,88.399,88.308,112.6]
[1645984806996,16.34,88.4,88.308,112.6]
[1645984806997,113.3,88.389,88.308,112.6]
[1645984807196,113.3,88.387,88.308,112.6]
[1645984807398,1.78914607,88.386,88.308,112.6]
[1645984807798,1.78914607,88.386,88.292,12.86336308]
[1645984807799,113.3,88.384,88.292,12.86336308]
[1645984807998,113.3,88.382,88.292,12.86336308]
[1645984808201,113.3,88.379,88.292,12.86336308]
[1645984808397,113.3,88.377,88.292,12.86336308]
[1645984808598,1.72966107,88.376,88.292,12.86336308]
[1645984808801,4.527,88.375,88.292,12.86336308]
[1645984809198,113.3,88.373,88.292,12.86336308]
[1645984809499,4.527,88.372,88.301,2.50896494]
[1645984809698,113.3,88.373,88.301,2.50896494]
[1645984809898,113.3,88.373,88.302,12.86336308]
[1645984810097,113.3,88.373,88.302,15.41697032]
[1645984810297,113.3,88.373,88.302,12.86336308]
[1645984811501,1.7198854,88.372,88.3,16.9905]
[1645984811699,113.3,88.371,88.3,16.9905]
[1645984811901,113.3,88.369,88.287,12.86336308]
[1645984812099,1.48695979,88.368,88.28,16.9947]
[1645984812299,4.527,88.367,88.273,12.86336308]
[1645984812499,4.527,88.367,88.251,2.8168111]
[1645984812500,117.827,88.367,88.26,12.86336308]
[1645984812699,1.64341484,88.366,88.252,2.39273131]
[1645984812899,1.64341484,88.366,88.241,2.36020765]
[1645984812900,117.829,88.365,88.241,2.36020765]
[1645984813097,113.3,88.349,88.241,2.36020765]
[1645984813299,113.3,88.339,88.268,0.48247515]
[1645984813500,113.3,88.337,88.268,0.48247515]
[1645984813700,4.529,88.336,88.268,0.48247515]
[1645984813905,1.7701486,88.334,88.268,0.48247515]
[1645984814100,4.529,88.333,88.268,0.48247515]
[1645984815107,113.3,88.331,88.162,5.79]
[1645984815304,150.18997684,88.319,88.19,112.6]
[1645984815504,113.3,88.317,88.15,112.6]
[1645984815708,6.00975718,88.318,88.15,112.6]
[1645984815709,113.3,88.315,88.153,16.6603]
[1645984815908,1.77975473,88.298,88.19,17.0107]
[1645984816109,16.34,88.29,88.19,17.0107]
[1645984816307,31.39985938,88.289,88.19,129.6107]
[1645984816508,31.39985938,88.289,88.2,16.34]
[1645984816710,31.39985938,88.289,88.201,2.9672296]
[1645984816911,31.39985938,88.289,88.202,6.0]
[1645984817111,31.39985938,88.289,88.22,17.0019]
[1645984817710,31.39985938,88.289,88.221,2.74678921]
[1645984818130,31.39985938,88.289,88.23,17.0025]
[1645984818531,1.45127657,88.309,88.231,2.74678921]
[1645984818733,23.9753,88.314,88.231,2.74678921]
[1645984819134,23.9753,88.314,88.231,14.59237781]
[1645984819331,23.9753,88.314,88.25,16.9991]
[1645984819532,37.90857509,88.313,88.231,2.74678921]
[1645984819731,115.18607024,88.312,88.231,2.74678921]
[1645984819931,1.89449835,88.311,88.231,2.74678921]
[1645984820332,1.89449835,88.311,88.216,23.8423]
[1645984820532,2.74678921,88.31,88.23,17.0026]
[1645984820731,1.89449835,88.311,88.23,17.0026]
[1645984820933,4.531,88.31,88.23,17.0026]
[1645984822135,2.74678921,88.309,88.21,17.007]
[1645984822335,4.532,88.308,88.21,17.007]
[1645984822537,113.3,88.307,88.21,17.007]
[1645984822737,113.3,88.305,88.21,17.007]
[1645984822939,113.3,88.303,88.21,17.007]
[1645984823137,113.3,88.299,88.21,17.007]
[1645984823338,4.532,88.298,88.21,17.007]
[1645984823538,162.4531,88.297,88.21,17.007]
[1645984823738,113.3,88.295,88.21,17.007]
[1645984823937,113.3,88.293,88.21,17.007]
[1645984824138,113.3,88.291,88.21,17.007]
[1645984824341,4.532,88.29,88.21,17.007]
[1645984824539,1.42957743,88.288,88.21,17.007]
[1645984824751,30.59712699,88.286,88.21,17.007]
[1645984824939,5.90291388,88.285,88.21,17.007]
[1645984825340,1.63850348,88.283,88.21,17.007]
[1645984826142,1.63850348,88.283,88.19,188.21012018]
[1645984826143,113.3,88.281,88.19,17.0106]
[1645984826342,113.3,88.279,88.19,17.0106]
[1645984826541,113.3,88.277,88.19,17.0106]
[1645984826742,4.533,88.276,88.185,3.4375379]
[1645984826944,113.3,88.275,88.185,3.4375379]
[1645984827141,113.3,88.273,88.185,3.4375379]
[1645984827340,23.0269,88.282,88.185,3.4375379]
[1645984827341,113.3,88.271,88.185,3.4375379]
[1645984827543,113.3,88.269,88.185,3.4375379]
[1645984827743,1.68685288,88.268,88.185,3.4375379]
[1645984828142,113.3,88.267,88.185,3.4375379]
[1645984828343,1.56648389,88.266,88.185,3.4375379]
[1645984829445,23.1789,88.268,88.185,3.4375379]
[1645984829643,113.3,88.284,88.19,17.0109]
[1645984829843,4.533,88.303,88.201,113.3]
[1645984830045,6.0,88.302,88.203,113.3]
[1645984830245,6.0,88.302,88.205,113.3]
[1645984830447,6.0,88.301,88.217,113.3]
[1645984830646,4.532,88.325,88.23,16.34]
[1645984830844,113.3,88.323,88.23,16.34]
[1645984831045,113.3,88.321,88.23,16.34]
[1645984831246,113.3,88.321,88.231,2.74678921]
[1645984831447,4.531,88.323,88.25,16.9979]
[1645984831646,37.14887551,88.324,88.25,33.3379]
[1645984832647,113.3,88.323,88.25,33.3379]
[1645984833246,37.14887551,88.324,88.25,33.3379]
[1645984833848,37.14887551,88.324,88.27,16.9944]
[1645984835449,113.3,88.323,88.251,2.74678921]
[1645984836051,31.14887551,88.324,88.251,2.74678921]
[1645984837353,1.49485506,88.323,88.25,33.3384]
[1645984837551,114.79485506,88.323,88.25,33.3384]
[1645984837850,113.3,88.321,88.25,33.3384]
[1645984838050,1.85906371,88.32,88.25,33.3384]
[1645984838952,113.3,88.318,88.25,33.3384]
[1645984839952,1.85906371,88.32,88.25,33.3384]
[1645984843058,113.3,88.318,88.25,33.3384]
[1645984843659,1.42956195,88.317,88.232,3.4375379]
[1645984843858,1.61759696,88.315,88.232,3.4375379]
[1645984844079,4.531,88.314,88.232,3.4375379]
[1645984844459,2.74678921,88.313,88.232,3.4375379]
[1645984844658,4.531,88.312,88.232,3.4375379]
[1645984844860,4.531,88.312,88.311,0.24210525]
[1645984845058,120.86319997,88.312,88.311,0.24210525]
[1645984845461,123.60998918,88.312,88.311,0.24210525]
[1645984845661,119.07898918,88.312,88.311,0.24210525]
[1645984846865,125.07898918,88.312,88.311,0.24210525]
[1645984847765,122.33219997,88.312,88.311,0.24210525]
[1645984848064,122.33219997,88.312,88.232,3.4375379]
[1645984848264,1.53131078,88.311,88.232,3.4375379]
[1645984849564,9.03219997,88.312,88.24,17.0013]
[1645984849965,3.03219997,88.312,88.24,33.3413]
[1645984850366,3.03219997,88.312,88.241,2.74678921]
[1645984850666,3.03219997,88.312,88.26,16.9963]
[1645984851269,3.03219997,88.312,88.261,2.74678921]
[1645984851883,4.53,88.348,88.261,2.74678921]
[1645984852284,114.8383957,88.349,88.261,2.74678921]
[1645984852485,114.8383957,88.349,88.27,16.9951]
[1645984852888,1.74638169,88.367,88.271,2.74678921]
[1645984853089,2.74678921,88.382,88.28,16.34]
[1645984853287,2.74678921,88.382,88.281,2.60137433]
[1645984853489,4.527,88.381,88.281,18.09535781]
[1645984853688,39.46643923,88.38,88.281,43.96543361]
[1645984853888,114.79879049,88.379,88.282,43.96543361]
[1645984854188,1.80196034,88.378,88.283,43.96543361]
[1645984854588,1.80196034,88.378,88.29,16.9913]
[1645984854789,113.3,88.377,88.29,33.3313]
[1645984854990,1.8808387,88.376,88.291,2.74678921]
[1645984855192,1.8808387,88.376,88.311,3.4375379]
[1645984857394,6.0,88.375,88.311,3.4375379]
[1645984857594,33.46643923,88.38,88.32,16.9856]
[1645984857796,33.46643923,88.38,88.32,33.3256]
[1645984857993,33.46643923,88.38,88.321,2.74678921]
[1645984858192,33.46643923,88.38,88.321,18.09535781]
[1645984858393,6.0,88.379,88.321,18.09535781]
[1645984858594,6.0,88.379,88.322,2.74678921]
[1645984858793,6.0,88.379,88.33,16.9819]
[1645984858993,119.3,88.379,88.33,16.9819]
[1645984859201,119.3,88.379,88.32,16.34]
[1645984859402,119.3,88.379,88.311,3.4375379]
[1645984860410,1.53703614,88.378,88.311,3.4375379]
[1645984862109,1.53703614,88.378,88.37,3.4375379]
[1645984862309,3.03219997,88.377,88.31,33.3275]
[1645984862912,1.53807453,88.374,88.31,33.3275]
[1645984867815,1.53807453,88.374,88.291,38.7336855]
[1645984867816,1.53807453,88.374,88.291,15.3485686]
[1645984868016,113.3,88.372,88.29,16.9915]
[1645984868315,1.47074825,88.371,88.29,16.9915]
[1645984868516,1.55624534,88.369,88.29,16.9915]
[1645984868713,4.527,88.368,88.284,25.8700758]
[1645984868913,4.527,88.368,88.27,33.3354]
[1645984868914,113.3,88.364,88.271,25.8700758]
[1645984869117,113.3,88.362,88.337,0.12148802]
[1645984869314,113.3,88.36,88.337,0.12148802]
[1645984869520,113.3,88.358,88.337,0.12148802]
[1645984869714,1.63034727,88.357,88.337,0.12148802]
[1645984870015,4.527,88.356,88.337,0.12148802]
[1645984870215,113.3,88.355,88.337,0.12148802]
[1645984870414,113.3,88.353,88.337,0.12148802]
[1645984870617,113.3,88.351,88.337,0.12148802]
[1645984870813,113.3,88.349,88.337,0.12148802]
[1645984871013,113.3,88.347,88.337,0.12148802]
[1645984871214,4.527,88.346,88.337,0.12148802]
[1645984871418,113.3,88.345,88.337,0.12148802]
[1645984871619,113.3,88.343,88.337,0.12148802]
[1645984871813,4.527,88.342,88.337,0.12148802]
[1645984872214,113.3,88.34,88.337,0.12148802]
[1645984872415,113.3,88.338,88.337,0.12148802]
[1645984872716,117.827,88.338,88.337,0.00148802]
[1645984873118,120.57378921,88.338,88.337,0.00148802]
[1645984873516,132.40341478,88.338,88.337,0.00148802]
[1645984874716,31.5059124,88.337,88.249,0.96610441]
[1645984874914,119.67928453,88.336,88.249,0.96610441]
[1645984875114,1.75938261,88.335,88.249,0.96610441]
[1645984875314,4.53,88.334,88.249,0.96610441]
[1645984875515,113.3,88.332,88.249,0.96610441]
[1645984875718,113.3,88.33,88.249,0.96610441]
[1645984875918,1.66630692,88.329,88.249,0.96610441]
[1645984876118,4.53,88.328,88.249,0.96610441]
[1645984876316,113.3,88.327,88.249,0.96610441]
[1645984876518,113.3,88.325,88.249,0.96610441]
[1645984876718,113.3,88.323,88.249,0.96610441]
[1645984876916,113.3,88.321,88.249,0.96610441]
[1645984877117,113.3,88.319,88.249,0.96610441]
[1645984877317,6.11156672,88.318,88.249,0.96610441]
[1645984877518,1.54159921,88.316,88.249,0.96610441]
[1645984877716,1.40268272,88.313,88.249,0.96610441]
[1645984877919,4.53,88.312,88.249,0.96610441]
[1645984878521,1.40268272,88.313,88.249,0.96610441]
[1645984878920,1.54438033,88.31,88.249,0.96610441]
[1645984879121,113.3,88.307,88.249,0.96610441]
[1645984879323,113.3,88.305,88.249,0.96610441]
[1645984879522,32.6232778,88.308,88.183,78.5796]
[1645984879523,113.3,88.303,88.183,78.5796]
[1645984879721,113.3,88.301,88.2,17.0087]
[1645984879921,113.3,88.299,88.195,2.74678921]
[1645984880123,113.3,88.299,88.185,2.74678921]
[1645984880321,23.61878921,88.3,88.192,23.3851169]
[1645984880322,1.456382,88.296,88.192,23.3851169]
[1645984880722,1.456382,88.296,88.193,2.74678921]
[1645984880925,1.456382,88.296,88.2,17.0092]
[1645984881329,113.3,88.293,88.201,2.74678921]
[1645984881525,1.85275301,88.292,88.201,2.74678921]
[1645984882423,1.85275301,88.292,88.21,17.0072]
[1645984882824,1.85275301,88.292,88.211,2.74678921]
[1645984883223,113.3,88.29,88.211,2.74678921]
[1645984883428,6.0,88.291,88.22,17.0057]
[1645984883825,6.0,88.291,88.221,2.74678921]
[1645984884427,113.3,88.29,88.221,2.74678921]
[1645984885626,113.3,88.29,88.23,17.0035]
[1645984886827,1.85275301,88.292,88.23,17.0035]
[1645984888633,25.65975369,88.294,88.23,19.75028921]
[1645984888831,4.531,88.336,88.23,19.75028921]
[1645984889030,4.531,88.336,88.24,16.34]
[1645984889229,1.56705262,88.336,88.25,16.9975]
[1645984889631,114.86705262,88.336,88.25,16.9975]
[1645984889833,34.6795991,88.298,88.25,16.9975]
[1645984890032,34.6795991,88.298,88.25,33.3375]
[1645984890439,6.0,88.297,88.25,33.3375]
[1645984891235,6.0,88.297,88.251,2.74678921]
[1645984891435,6.0,88.297,88.25,33.3375]
[1645984894661,23.9877,88.315,88.251,27.6551152]
[1645984894860,6.0,88.314,88.251,27.6551152]
[1645984895059,6.0,88.314,88.26,16.9962]
[1645984895259,6.0,88.314,88.27,16.34]
[1645984895659,31.15674248,88.313,88.27,16.34]
[1645984900065,31.15674248,88.313,88.27,33.337]
[1645984901966,31.15674248,88.313,88.253,4.53]
[1645984901967,1.67391806,88.31,88.253,4.53]
[1645984902166,1.67391806,88.31,88.25,16.9997]
[1645984905367,113.3,88.308,88.23,33.3439]
[1645984905569,113.3,88.306,88.23,33.3439]
[1645984905770,113.3,88.304,88.23,33.3439]
[1645984905969,113.3,88.302,88.23,33.3439]
[1645984906170,113.3,88.3,88.23,33.3439]
[1645984906370,113.3,88.298,88.23,33.3439]
[1645984906570,1.75541571,88.297,88.23,33.3439]
[1645984906772,1.75541571,88.297,88.24,17.0025]
[1645984908370,1.75541571,88.297,88.223,38.83119725]
[1645984908574,1.75541571,88.297,88.21,13.92287126]